fUSD/lending_fUSD_20260427
["ID","MTS","AMOUNT","RATE_DAILY","PERIOD"]
[421266749,1777299053750,-500.0,0.00039999,30]
[421266750,1777299053759,-500.0,0.00039999,30]
[421266751,1777299053769,-500.0,0.00039999,30]
[421266752,1777299053779,-621.25,0.00039999,30]
[421266753,1777299053788,-360.67036374,0.00039999,120]
[421266754,1777299053798,-500.0,0.00039999,2]
[421266755,1777299053808,-500.0,0.00039999,2]
[421266756,1777299053817,-500.0,0.00039999,2]
[421266757,1777299053827,-500.0,0.00039999,2]
[421266758,1777299053836,-500.0,0.00039999,2]
[421266759,1777299053846,-500.0,0.00039999,2]
[421266760,1777299053856,-556.2,0.00039999,2]
[421266761,1777299053865,-30776.43237773,0.0004,2]
[421266762,1777299053875,-23121.15254722,0.0004,120]
[421266763,1777299053884,-24035.08636089,0.0004,2]
[421266764,1777299053894,-4158.7940098,0.0004,2]
[421266765,1777299053904,-10816.44909294,0.0004,2]
[421266766,1777299053913,-12948.63152661,0.0004,120]
[421266767,1777299053923,-62182.51810345,0.0004,120]
[421266768,1777299054391,-3340.89991765,0.0004,120]
[421266769,1777299054543,-431.0,0.00017867,2]
[421266770,1777299054554,-2988.0,0.00017867,2]
[421266771,1777299054564,-416.0,0.0001878,2]
[421266772,1777299054573,-162.0,0.0002,2]
[421266773,1777299054582,-162.0,0.00021,2]
[421266774,1777299054592,-416.0,0.0002178,2]
[421266775,1777299054601,-162.0,0.00022,2]
[421266776,1777299054611,-416.0,0.0002478,2]
[421266777,1777299054621,-424.346626,0.00027397,2]
[421266778,1777299054630,-424.346626,0.00027397,2]
[421266779,1777299054640,-424.346626,0.00027397,2]
[421266780,1777299054649,-424.346626,0.00027397,2]
[421266781,1777299054659,-424.346626,0.000289,7]
[421266782,1777299054668,-424.346626,0.000289,7]
[421266783,1777299054678,-424.346626,0.000311,7]
[421266784,1777299054687,-424.346626,0.00032877,7]
[421266785,1777299054697,-69152.226992,0.0004,120]
[421266786,1777299054709,-1131.9414888,0.0004,120]
[421266787,1777299054910,-310.546,0.00019179,2]
[421266796,1777300231660,-2204.14489784,0.000105,2]
[421266797,1777300231670,-28023.58,0.00010574,2]
[421266798,1777300231680,-214.0,0.00010632,2]
[421266799,1777300231689,-503.74,0.00010632,2]
[421266800,1777300231699,-21882.50172345,0.00010648,2]
[421266801,1777300231711,-52217.10966868,0.00010648,2]
[421266802,1777300231723,-209095.51193771,0.00010648,2]
[421266803,1777300231735,-188676.19320171,0.00010648,2]
[421266804,1777300231749,-508.61,0.00010648,2]
[421266821,1777300237827,-1465.35479139,0.00010648,2]
[421266822,1777300237840,-3625.13384008,0.00010648,2]
[421266823,1777300238156,-6096.0,0.00010648,2]
[421266824,1777300238213,-263.36630388,0.00010648,2]
[421266832,1777300240106,-2773.2180331,0.00010648,2]
[421266833,1777300240116,-465.0,0.00010699,2]
[421266834,1777300240125,-30.04562337,0.00010699,2]
[421266835,1777300240265,-119.95437663,0.00010699,2]
[421266836,1777300240276,-1036.1961141,0.000107,2]
[421266837,1777300240285,-2590.6717312,0.000107,2]
[421266838,1777300240294,-2837.70516579,0.000107,2]
[421266839,1777300240304,-2562.19268459,0.000107,2]
[421266840,1777300240313,-2343.63829667,0.000107,2]
[421266841,1777300240323,-917.36541005,0.000107,2]
[421266842,1777300240333,-2494.47558499,0.000107,2]
[421266843,1777300240342,-2242.56703584,0.000107,2]
[421266844,1777300240351,-777.57134964,0.000107,2]
[421266845,1777300240361,-674.56557419,0.00010738,2]
[421266846,1777300240371,-2500.0,0.00010748,2]
[421266847,1777300240381,-92413.623216,0.00010748,2]
[421266848,1777300240392,-559.93474105,0.00010748,2]
[421266849,1777300240403,-386.39842477,0.00010748,2]
[421266850,1777300240595,-491.42396994,0.00010748,2]
[421266854,1777300243209,-621.0,0.00010748,2]
[421266855,1777300243222,-344.66,0.00010748,2]
[421266860,1777300248470,-8600.16096363,0.00010748,2]
[421266872,1777300344993,214.0,7e-05,2]
[421266880,1777301431935,-298.6735,0.000104,2]
[421266881,1777301431944,-300.0,0.00010425,2]
[421266882,1777301431954,-300.0,0.00010499,2]
[421266883,1777301431963,-669.0,0.00010499,2]
[421266884,1777301431974,-200.0,0.000105,2]
[421266885,1777301431983,-778.34970386,0.000105,2]
[421266886,1777301431993,-1911.02031601,0.000105,2]
[421266887,1777301432003,-183.0,0.00010641,2]
[421266888,1777301432012,-151.0,0.00010642,2]
[421266889,1777301432021,-151.0,0.00010642,2]
[421266890,1777301432031,-151.0,0.00010642,2]
[421266891,1777301432040,-151.0,0.00010642,2]
[421266892,1777301432049,-151.0,0.00010642,2]
[421266893,1777301432059,-151.0,0.00010642,2]
[421266894,1777301432068,-151.0,0.00010642,2]
[421266895,1777301432078,-151.0,0.00010642,2]
[421266896,1777301432087,-8.03148013,0.00010642,2]
[421266897,1777301432100,-142.96851987,0.00010642,2]
[421266898,1777301432109,-151.0,0.00010642,2]
[421266899,1777301432118,-151.0,0.00010642,2]
[421266900,1777301432128,-151.0,0.00010642,2]
[421266901,1777301432138,-151.0,0.00010642,2]
[421266902,1777301432148,-151.0,0.00010642,2]
[421266903,1777301432157,-151.0,0.00010642,2]
[421266904,1777301432167,-151.0,0.00010642,2]
[421266905,1777301432176,-151.0,0.00010642,2]
[421266906,1777301432186,-151.0,0.00010642,2]
[421266907,1777301432195,-150.0,0.00010647,2]
[421266908,1777301432204,-197.95737122,0.00010647,2]
[421266909,1777301432219,-65.03463179,0.00010647,2]
[421266910,1777301432228,-266.83798097,0.00010647,2]
[421266911,1777301432238,-227.99511079,0.00010647,2]
[421266919,1777301438945,-272.00488921,0.00010647,2]
[421266920,1777301438955,-177.87021056,0.00010647,2]
[421266921,1777301438999,-322.12978944,0.00010647,2]
[421266922,1777301439008,-494.39786027,0.00010647,2]
[421266923,1777301439017,-32137.9554,0.00010648,2]
[421266924,1777301439027,-45227.51695028,0.00010648,2]
[421266925,1777301439038,-37873.0,0.00010648,2]
[421266926,1777301439156,-5201.50007177,0.00010648,2]
[421266930,1777301440211,-463.17396815,0.00010648,2]
[421266931,1777301440369,-558083.3252098,0.00010648,2]
[421266932,1777301440378,-3065.99519936,0.000107,2]
[421266933,1777301440388,-1000.0,0.00010747,2]
[421266934,1777301440397,-2000.0,0.00010748,2]
[421266935,1777301440407,-1677.01820527,0.000109,2]
[421266936,1777301440417,-1000.0,0.00010948,2]
[421266937,1777301440426,-1000.0,0.00010948,2]
[421266938,1777301440435,-1000.0,0.00010948,2]
[421266939,1777301440444,-1000.0,0.00010948,2]
[421266940,1777301440453,-1000.0,0.00010948,2]
[421266941,1777301440463,-1000.0,0.00010948,2]
[421266942,1777301440472,-1000.0,0.00010948,2]
[421266943,1777301440483,-1000.0,0.00010948,2]
[421266944,1777301440492,-1000.0,0.00010948,2]
[421266945,1777301440502,-1000.0,0.00010948,2]
[421266946,1777301440512,-1000.0,0.00010948,2]
[421266947,1777301440521,-1000.0,0.00010948,2]
[421266948,1777301440530,-1000.0,0.00010948,2]
[421266949,1777301440550,-1000.0,0.00010948,2]
[421266950,1777301440561,-1000.0,0.00010948,2]
[421266951,1777301440571,-1000.0,0.00010948,2]
[421266952,1777301440580,-1000.0,0.00010948,2]
[421266953,1777301440590,-1000.0,0.00010948,2]
[421266954,1777301440600,-360.83633539,0.00010948,2]
[421266955,1777301440609,-1200.15,0.00010948,2]
[421266956,1777301440619,-1200.15,0.00011222,2]
[421266957,1777301440629,-3562.76,0.00011281,2]
[421266958,1777301440639,-999.99,0.00011281,2]
[421266959,1777301440649,-299.99,0.00011281,2]
[421266960,1777301440658,-1850.84,0.00011281,2]
[421266961,1777301440668,-150.99,0.00011281,2]
[421266962,1777301440678,-300.0,0.0001144,2]
[421266963,1777301440687,-5000.0,0.0001144,2]
[421266964,1777301440697,-2500.0,0.0001144,2]
[421266965,1777301440707,-2500.0,0.0001144,2]
[421266966,1777301440717,-2500.0,0.0001144,2]
[421266967,1777301440727,-2500.0,0.0001144,2]
[421266968,1777301440737,-2574.4043734,0.0001144,2]
[421266970,1777301440747,-300.0,0.0001144,2]
[421266971,1777301440756,-250.0,0.0001144,2]
[421266972,1777301440766,-300.0,0.0001144,2]
[421266973,1777301440776,-300.0,0.0001144,2]
[421266974,1777301440785,-1200.15,0.00011496,2]
[421266975,1777301440795,-420.0,0.00011543,2]
[421266976,1777301440805,-9962.50989393,0.00011594,2]
[421266977,1777301440814,-255.0,0.0001168,2]
[421266978,1777301440824,-1200.15,0.0001177,2]
[421266979,1777301440834,-152.0,0.00011802,7]
[421266980,1777301440843,-152.0,0.00011802,7]
[421266981,1777301440853,-1200.15,0.00012044,2]
[421266982,1777301440863,-1200.15,0.00012318,2]
[421266983,1777301440872,-1200.15,0.00012592,2]
[421266984,1777301440881,-587.0,0.00012691,2]
[421266985,1777301440891,-306.0,0.00012809,2]
[421266986,1777301440900,-1200.16072732,0.00012866,2]
[421266987,1777301440910,-160.0,0.00012912,2]
[421266988,1777301440919,-162.27045424,0.00012912,2]
[421266989,1777301440929,-207.31603756,0.00012912,2]
[421266990,1777301440938,-150.0,0.00013,2]
[421266991,1777301440948,-250.0,0.00013,2]
[421266992,1777301440957,-2657.54,0.00013054,2]
[421266993,1777301440967,-1491.24,0.00013054,2]
[421266994,1777301440976,-813.92,0.00013054,2]
[421266995,1777301440986,-2500.0,0.00013545,2]
[421266996,1777301440996,-7069.69495683,0.00013573,2]
[421266997,1777301441005,-506.0,0.000136,2]
[421266998,1777301441015,-417.9858196,0.00013645,2]
[421266999,1777301441024,-52281.28109201,0.00013645,2]
[421267000,1777301441038,-850.70101574,0.00013645,2]
[421267001,1777301441049,-1561.86,0.00013645,2]
[421267002,1777301441060,-1075.38158507,0.00013645,2]
[421267012,1777301442955,-5904.20318903,0.00013645,2]
[421267019,1777301446115,-783.08,0.00013645,2]
[421267020,1777301446540,-31427.89557965,0.00013645,2]
[421267021,1777301446550,-500.0,0.00013673,2]
[421267022,1777301446559,-500.0,0.00013673,2]
[421267023,1777301446569,-500.0,0.00013673,2]
[421267024,1777301446579,-500.0,0.00013673,2]
[421267025,1777301446588,-500.0,0.00013698,2]
[421267026,1777301446598,-500.0,0.00013698,2]
[421267027,1777301446608,-503.345429,0.00013698,2]
[421267028,1777301446617,-500.0,0.00013698,2]
[421267029,1777301446627,-500.0,0.00013698,2]
[421267030,1777301446636,-567.82,0.00013698,2]
[421267031,1777301446646,-500.0,0.00013698,2]
[421267032,1777301446656,-500.0,0.00013698,2]
[421267033,1777301446666,-731.20006875,0.00013759,2]
[421267034,1777301446675,-175.67,0.00014,2]
[421267035,1777301446685,-500.0,0.00014221,2]
[421267036,1777301446694,-1009.45410883,0.00014221,2]
[421267037,1777301446705,-500.0,0.000143,2]
[421267038,1777301446715,-500.0,0.000143,2]
[421267039,1777301446725,-500.0,0.000143,2]
[421267040,1777301446735,-4544.05,0.00014504,2]
[421267041,1777301446744,-752.0,0.00014599,2]
[421267042,1777301446753,-752.0,0.00014601,2]
[421267043,1777301446763,-752.0,0.00014646,2]
[421267044,1777301446772,-752.0,0.00014694,2]
[421267045,1777301446782,-752.0,0.00014715,2]
[421267046,1777301446792,-752.0,0.00014749,2]
[421267047,1777301446801,-752.0,0.00014752,2]
[421267048,1777301446811,-500.0,0.00014848,2]
[421267049,1777301446820,-511.93508785,0.00014914,2]
[421267050,1777301446830,-500.0,0.00014914,2]
[421267051,1777301446839,-752.0,0.00014915,2]
[421267052,1777301446848,-752.0,0.00014962,2]
[421267053,1777301446858,-160.0,0.00015,2]
[421267054,1777301446867,-417.9858196,0.00015042,2]
[421267055,1777301446876,-752.0,0.00015044,2]
[421267056,1777301446886,-1677.01820521,0.00015114,2]
[421267057,1777301446895,-93884.4024615,0.00015127,2]
[421267058,1777301446905,-752.0,0.00015212,2]
[421267059,1777301446915,-752.0,0.00015409,2]
[421267060,1777301446925,-752.0,0.00015499,2]
[421267061,1777301446934,-752.0,0.00015608,2]
[421267062,1777301446944,-752.0,0.00015613,2]
[421267063,1777301446954,-224.85612668,0.00015693,2]
[421267094,1777302632382,-305.87152824,8e-05,2]
[421267095,1777302632399,-454.4361659,8e-05,2]
[421267096,1777302632411,-308.89515991,8e-05,2]
[421267097,1777302632421,-280.0,8.219e-05,2]
[421267098,1777302632430,-271.95713437,8.8e-05,2]
[421267099,1777302632439,-402.992,0.00010486,2]
[421267100,1777302632449,-190.53483538,0.0001059,2]
[421267101,1777302632459,-1200.0,0.00010599,2]
[421267102,1777302632468,-184.09440211,0.00010599,2]
[421267103,1777302632479,-195.40615434,0.00010599,2]
[421267104,1777302632488,-500.0,0.00010599,2]
[421267105,1777302632498,-500.0,0.00010599,2]
[421267106,1777302632507,-500.0,0.00010599,2]
[421267107,1777302632517,-500.0,0.00010599,2]
[421267108,1777302632526,-500.0,0.00010599,2]
[421267109,1777302632536,-1828.11049805,0.000106,2]
[421267110,1777302632547,-300.29823811,0.000106,2]
[421267111,1777302632559,-371.59126384,0.000106,2]
[421267112,1777302632569,-1341.88719081,0.000106,2]
[421267115,1777302632608,-500.0,0.00010599,2]
[421267116,1777302632617,-500.0,0.00010599,2]
[421267117,1777302632627,-500.0,0.00010599,2]
[421267118,1777302632637,-1691364.84470919,0.000106,2]
[421267119,1777302632646,-150.0,0.00010693,2]
[421267120,1777302632656,-200.0,0.00010694,2]
[421267135,1777302632934,-500.0,0.00010694,2]
[421267136,1777302632944,-151.0,0.00010694,2]
[421267137,1777302632953,-500.0,0.00010694,2]
[421267138,1777302632963,-151.0,0.00010694,2]
[421267139,1777302632972,-500.0,0.00010694,2]
[421267140,1777302632981,-151.0,0.00010694,2]
[421267141,1777302632990,-500.0,0.00010694,2]
[421267142,1777302633000,-151.0,0.00010694,2]
[421267143,1777302633010,-500.0,0.00010694,2]
[421267144,1777302633019,-151.0,0.00010694,2]
[421267145,1777302633029,-500.0,0.00010694,2]
[421267146,1777302633038,-151.0,0.00010694,2]
[421267147,1777302633047,-500.0,0.00010694,2]
[421267148,1777302633056,-151.0,0.00010694,2]
[421267149,1777302633065,-500.0,0.00010694,2]
[421267150,1777302633075,-151.0,0.00010694,2]
[421267151,1777302633084,-500.0,0.00010694,2]
[421267152,1777302633094,-151.0,0.00010694,2]
[421267153,1777302633103,-500.0,0.00010694,2]
[421267154,1777302633113,-151.0,0.00010694,2]
[421267155,1777302633122,-500.0,0.00010694,2]
[421267156,1777302633131,-151.0,0.00010694,2]
[421267157,1777302633140,-15391.54268081,0.000107,2]
[421267158,1777302633152,-391.84885258,0.000107,2]
[421267159,1777302633163,-504.30365188,0.000107,2]
[421267160,1777302633175,-1194.49628972,0.000107,2]
[421267161,1777302633214,-500.0,0.00010599,2]
[421267162,1777302633224,-500.0,0.00010599,2]
[421267163,1777302633234,-79609.30406195,0.000107,2]
[421267164,1777302633246,-3476.22377999,0.000107,2]
[421267165,1777302633262,-610.44814184,0.000107,2]
[421267166,1777302633297,-500.0,0.00010599,2]
[421267167,1777302633306,-806.980303,0.000107,2]
[421267168,1777302633319,-2003.26428485,0.000107,2]
[421267169,1777302633330,-280.72,0.000107,2]
[421267182,1777302638189,-562.4341232,0.00010599,2]
[421267183,1777302638200,-414.9283768,0.00010599,2]
[421267184,1777302638243,-85.0716232,0.00010599,2]
[421267185,1777302638253,-500.0,0.00010599,2]
[421267186,1777302638263,-21.74837634,0.00010599,2]
[421267190,1777302640345,-478.25162366,0.00010599,2]
[421267191,1777302640356,-500.0,0.00010599,2]
[421267192,1777302640366,-500.0,0.00010599,2]
[421267193,1777302640375,-500.0,0.00010599,2]
[421267194,1777302640385,-500.0,0.00010599,2]
[421267195,1777302640395,-500.0,0.00010599,2]
[421267196,1777302640405,-500.0,0.00010599,2]
[421267197,1777302640415,-500.0,0.00010599,2]
[421267198,1777302640424,-180995.52361679,0.000107,2]
[421267199,1777302640435,-10296.76425145,0.000107,2]
[421267200,1777302640447,-605767.5712144,0.000107,2]
[421267201,1777302640456,-400.0,0.000109,3]
[421267202,1777302640466,-19753.10214011,0.000109,2]
[421267203,1777302640477,-56582.32259088,0.00011099,2]
[421267204,1777302640487,-1611.65,0.00011456,2]
[421267205,1777302640497,-20035.53135331,0.000115,2]
[421267206,1777302640507,-907.82,0.00011697,2]
[421267207,1777302640517,-255.0,0.0001173,2]
[421267208,1777302640526,-1473.65112246,0.00011987,2]
[421267209,1777302640535,-108783.78837563,0.00012,2]
[421267210,1777302640545,-187.0,0.00012863,2]
[421267211,1777302640555,-24999.99,0.00012893,2]
[421267212,1777302640565,-441.76,0.00012893,2]
[421267213,1777302640575,-250.0,0.00013,2]
[421267214,1777302640585,-265.66247706,0.00013063,2]
[421267215,1777302640594,-162.27045424,0.00013182,2]
[421267216,1777302640604,-160.0,0.00013182,2]
[421267217,1777302640614,-2000.0,0.00013545,2]
[421267218,1777302640624,-506.0,0.000136,2]
[421267219,1777302640634,-254.0,0.00013673,2]
[421267220,1777302640643,-900.0,0.000139,5]
[421267221,1777302640652,-56582.32259083,0.00014256,2]
[421267222,1777302640662,-20016.84,0.00014359,2]
[421267223,1777302640672,-46942.2012307,0.00014409,2]
[421267224,1777302640682,-835.9716395,0.00014409,2]
[421267226,1777302640692,-3618.6949263,0.00014409,2]
[421267227,1777302640702,-188.066804,0.00014851,2]
[421267228,1777302640712,-160.0,0.00015,2]
[421267229,1777302640721,-150.0,0.00015083,2]
[421267230,1777302640732,-288.822543,0.00015084,2]
[421267232,1777302640741,-19753.10214006,0.00015243,2]
[421267233,1777302640751,-200.0,0.00015693,2]
[421267234,1777302640760,-634.91879498,0.00015693,2]
[421267235,1777302640770,-151.0,0.00015693,2]
[421267236,1777302640780,-527.14387332,0.00015693,2]
[421267237,1777302640790,-161.0,0.000157,2]
[421267238,1777302640799,-752.0,0.00015731,2]
[421267239,1777302640808,-752.0,0.0001574,2]
[421267240,1777302640818,-752.0,0.00015803,2]
[421267241,1777302640827,-752.0,0.0001582,2]
[421267242,1777302640837,-1005.36649711,0.00015831,2]
[421267243,1777302640846,-251.59321749,0.00015831,2]
[421267244,1777302640856,-200.0,0.0001585,2]
[421267245,1777302640866,-214.35885658,0.00015855,2]
[421267246,1777302640876,-752.0,0.0001589,2]
[421267247,1777302640886,-2000.0,0.00015892,2]
[421267248,1777302640895,-218.16,0.00015892,2]
[421267250,1777302640905,-46942.2012307,0.00015897,2]
[421267252,1777302640914,-1898.24,0.00015955,2]
[421267254,1777302640924,-1065.17,0.00015955,2]
[421267255,1777302640934,-3245.75,0.00015955,2]
[421267257,1777302640944,-581.37,0.00015955,2]
[421267259,1777302640954,-1439.83,0.00015977,2]
[421267261,1777302640964,-752.0,0.00016015,2]
[421267263,1777302640973,-752.0,0.00016028,2]
[421267265,1777302640983,-752.0,0.00016056,2]
[421267267,1777302640992,-752.0,0.00016062,2]
[421267269,1777302641002,-844.77,0.00016226,2]
[421267271,1777302641011,-475.73,0.00016313,2]
[421267273,1777302641020,-807.4399784,0.00016317,2]
[421267275,1777302641030,-506.0,0.00016487,4]
[421267277,1777302641040,-500.0,0.00016509,2]
[421267279,1777302641051,-500.0,0.00016509,2]
[421267281,1777302641061,-500.0,0.00016509,2]
[421267283,1777302641072,-501.23208155,0.00016509,2]
[421267285,1777302641083,-33096.7482,0.00016509,2]
[421267287,1777302641093,-126019.3091,0.0001651,2]
[421267289,1777302641103,-180.0,0.000166,12]
[421267291,1777302641113,-180.1642116,0.00016743,2]
[421267293,1777302641123,-1473.65112242,0.00017027,2]
[421267295,1777302641132,-150.0,0.0001731,2]
[421267297,1777302641143,-46942.2012307,0.00017385,2]
[421267299,1777302641152,-151.0,0.00017385,2]
[421267301,1777302641161,-151.0,0.00017711,2]
[421267303,1777302641172,-56582.32259083,0.00017711,2]
[421267306,1777302641182,-150.0,0.0001779,2]
[421267308,1777302641191,-150.0,0.00018271,2]
[421267310,1777302641201,-290.0,0.00018549,2]
[421267312,1777302641210,-352.0,0.00018725,2]
[421267314,1777302641219,-150.0,0.00018752,2]
[421267316,1777302641229,-46942.2012307,0.00018873,2]
[421267318,1777302641238,-500.0,0.00018873,2]
[421267320,1777302641248,-500.0,0.00018873,2]
[421267322,1777302641257,-500.0,0.00018873,2]
[421267324,1777302641266,-500.0,0.00018873,2]
[421267326,1777302641276,-186.731666,0.00018873,2]
[421267328,1777302641286,-437.0,0.00018914,2]
[421267330,1777302641295,-500.0,0.00019178,30]
[421267332,1777302641305,-151.63146377,0.00019178,30]
[421267334,1777302641316,-161.03,0.00019179,7]
[421267336,1777302641325,-3112.26375168,0.00019216,45]
[421267338,1777302641334,-150.0,0.00019233,4]
[421267340,1777302641357,-2732.92090741,0.00019251,46]
[421267342,1777302641367,-2282.86331798,0.00019359,69]
[421267344,1777302641376,-506.0,0.00019374,7]
[421267346,1777302641386,-360.0,0.0001947,12]
[421267348,1777302641395,-16106.92003346,0.00019686,2]
[421267351,1777302641408,-1168.44516,0.00019686,2]
[421267353,1777302641419,-2477.7369466,0.00019686,2]
[421267355,1777302641428,-500.0,0.00019726,2]
[421267357,1777302641438,-280.0,0.00019737,2]
[421267359,1777302641447,-500.0,0.0001989,2]
[421267361,1777302641457,-151.0,0.0002,2]
[421267363,1777302641466,-192.0,0.0002,2]
[421267365,1777302641475,-238.0,0.0002,2]
[421267367,1777302641486,-159.0,0.0002,2]
[421267369,1777302641495,-565.0,0.0002,2]
[421267371,1777302641504,-1878.0,0.0002,2]
[421267373,1777302641513,-1000.0,0.000203,2]
[421267375,1777302641522,-529.0,0.000203,2]
[421267377,1777302641531,-404.0,0.000203,2]
[421267379,1777302641540,-160.0,0.00020743,7]
[421267381,1777302641549,-859.625936,0.00020743,7]
[421267382,1777302641558,-1559.251872,0.00020743,7]
[421267384,1777302641568,-160.0,0.00020743,2]
[421267386,1777302641578,-284.21371,0.00020743,2]
[421267388,1777302641588,-408.427421,0.00020743,2]
[421267390,1777302641597,-151.0,0.00021,2]
[421267392,1777302641606,-192.0,0.00021,2]
[421267394,1777302641616,-238.0,0.00021,2]
[421267396,1777302641626,-170.0,0.00021,2]
[421267398,1777302641635,-565.0,0.00021,2]
[421267400,1777302641645,-10483.3544998,0.00021167,2]
[421267403,1777302641663,-46098.96809103,0.00021167,2]
[421267405,1777302641673,-151.0,0.00021758,2]
[421267407,1777302641682,-1172.217186,0.00021781,7]
[421267409,1777302641693,-387.56415,0.00021781,2]
[421267411,1777302641702,-151.0,0.00022,2]
[421267413,1777302641711,-192.0,0.00022,2]
[421267415,1777302641721,-238.0,0.00022,2]
[421267417,1777302641730,-565.0,0.00022,2]
[421267419,1777302641739,-1473.65112242,0.00022066,2]
[421267421,1777302641749,-2999.0,0.00022088,7]
[421267423,1777302641759,-150.0,0.00022255,2]
[421267425,1777302641768,-150.0,0.00022255,2]
[421267427,1777302641778,-150.0,0.00022255,2]
[421267429,1777302641788,-241.282,0.00022255,2]
[421267431,1777302641799,-183.0,0.00022255,2]
[421267433,1777302641809,-3531.0,0.00022255,2]
[421267435,1777302641819,-623.0,0.00022255,2]
[421267437,1777302641828,-1350.0,0.00022255,2]
[421267439,1777302641838,-150.0,0.00022255,2]
[421267441,1777302641848,-1266.0,0.00022255,2]
[421267443,1777302641857,-927.0,0.00022255,2]
[421267445,1777302641867,-1223.658,0.00022255,2]
[421267447,1777302641876,-2475.0,0.00022255,2]
[421267449,1777302641886,-416.0,0.00022255,2]
[421267451,1777302641895,-506.0,0.00022261,9]
[421267453,1777302641905,-539.0,0.00022418,7]
[421267455,1777302641914,-215.22,0.00022466,2]
[421267457,1777302641924,-254.0,0.00022801,5]
[421267460,1777302641933,-151.0,0.00023,2]
[421267462,1777302641944,-192.0,0.00023,2]
[421267464,1777302641954,-238.0,0.00023,2]
[421267466,1777302641963,-565.0,0.00023,2]
[421267468,1777302641973,-236.0,0.00023458,5]
[421267470,1777302641983,-609.552936,0.00023855,14]
[421267471,1777302641994,-201.533358,0.00023855,14]
[421267473,1777302642004,-975.67,0.000239,2]
[421267475,1777302642013,-166.0,0.00024,2]
[421267477,1777302642022,-192.0,0.00024,2]
[421267479,1777302642032,-238.0,0.00024,2]
[421267481,1777302642041,-565.0,0.00024,2]
[421267483,1777302642051,-5396.68315663,0.00024129,2]
[421267486,1777302642065,-14356.41898343,0.00024129,2]
[421267488,1777302642074,-500.0,0.00024192,120]
[421267490,1777302642084,-151.0,0.00024622,2]
[421267492,1777302642093,-56582.32259083,0.00024622,2]
[421267494,1777302642103,-150.0,0.00024658,2]
[421267496,1777302642115,-500.0,0.00024877,120]
[421267498,1777302642124,-151.0,0.00024897,7]
[421267500,1777302642133,-1760.34237574,0.000249,3]
[421267502,1777302642145,-25449.72618331,0.000249,3]
[421267504,1777302642156,-1680.75653448,0.000249,3]
[421267507,1777302642167,-1343.44849106,0.000249,3]
[421267509,1777302642178,-1131.43259709,0.000249,3]
[421267511,1777302642190,-2438.15312271,0.000249,3]
[421267514,1777302642209,-387.965,0.000249,3]
[421267623,1777302643304,-161.04,0.00019179,2]
[421267625,1777302643313,-161.04,0.00019179,7]
[421267627,1777302643323,-161.04,0.00019179,30]
[421267629,1777302643333,-6033.0,0.0002001,2]
[421267631,1777302643342,-270.0,0.00023,7]
[421267633,1777302643352,-151.0,0.00024658,2]
[421267635,1777302643361,-2716.44966632,0.000249,3]
[421267637,1777302643373,-257.38910072,0.000249,3]
[421267639,1777302643384,-774.0,0.000249,3]
[421267642,1777302643410,-193174.32500057,0.000249,3]
[421267648,1777302643466,-325.69607255,0.000249,3]
[421267650,1777302643477,-343.208083,0.000249,3]
[421267655,1777302643522,-1036.65328089,0.000249,3]
[421267852,1777302646922,-1300.90280001,0.00015654,3]